[Event "Titled Tuesday Blitz January 03 Early 2023"]
[White "Ezat, Mohamed"]
[Black "Ovezdurdyyeva, Jemal"]
[WhiteFideId "10600906"]
[BlackFideId "14001888"]
[WhiteElo "2402"]
[BlackElo "2078"]
[Result "1-0"]
[Round "09"]
[TimeControl "180+2"]
[Date "2023.01.03"]
[WhiteClock "0:01:12"]
[BlackClock "0:00:40"]

1. d4 {[%clk 0:02:47]}  Nf6 {[%clk 0:02:59]} 2. c4 {[%clk 0:02:46]}  e6 {[%clk 0:02:58]} 3. Nc3 {[%clk 0:02:44]}  b6 {[%clk 0:02:57]} 4. e4 {[%clk 0:02:42]}  d6 {[%clk 0:02:56]} 5. Bd3 {[%clk 0:02:40]}  c5 {[%clk 0:02:52]} 6. d5 {[%clk 0:02:38]}  exd5 {[%clk 0:02:47]} 7. exd5 {[%clk 0:02:37]}  Be7 {[%clk 0:02:45]} 8. Nf3 {[%clk 0:02:36]}  O-O {[%clk 0:02:46]} 9. h3 {[%clk 0:02:37]}  Re8 {[%clk 0:02:23]} 10. O-O {[%clk 0:02:35]}  Nbd7 {[%clk 0:02:23]} 11. Re1 {[%clk 0:02:34]}  a6 {[%clk 0:02:21]} 12. a4 {[%clk 0:02:32]}  Rb8 {[%clk 0:02:21]} 13. Bf4 {[%clk 0:02:31]}  Nf8 {[%clk 0:02:19]} 14. Bh2 {[%clk 0:02:25]}  Bd7 {[%clk 0:02:18]} 15. Qc2 {[%clk 0:02:18]}  b5 {[%clk 0:02:16]} 16. axb5 {[%clk 0:02:15]}  axb5 {[%clk 0:02:16]} 17. cxb5 {[%clk 0:02:14]}  Qc7 {[%clk 0:01:56]} 18. Nd2 {[%clk 0:02:10]}  Ng6 {[%clk 0:01:49]} 19. Nc4 {[%clk 0:02:09]}  Bxb5 {[%clk 0:01:32]} 20. Nxb5 {[%clk 0:01:51]}  Rxb5 {[%clk 0:01:33]} 21. Nxd6 {[%clk 0:01:50]}  Bxd6 {[%clk 0:01:32]} 22. Bxd6 {[%clk 0:01:44]}  Qxd6 {[%clk 0:01:29]} 23. Rxe8+ {[%clk 0:01:40]}  Nxe8 {[%clk 0:01:30]} 24. Bxb5 {[%clk 0:01:41]}  Nc7 {[%clk 0:01:30]} 25. Bc6 {[%clk 0:01:24]}  Nf4 {[%clk 0:01:20]} 26. Qe4 {[%clk 0:01:24]}  g6 {[%clk 0:01:08]} 27. Re1 {[%clk 0:01:21]}  Nfxd5 {[%clk 0:00:39]} 28. Bxd5 {[%clk 0:01:13]}  Qxd5 {[%clk 0:00:39]} 29. Qxd5 {[%clk 0:01:12]}  Nxd5 {[%clk 0:00:40]} 30. Re5 {[%clk 0:01:12]} 1-0


[Site "https://www.chess.com"]

[Event "Titled Tuesday Blitz January 03 Early 2023"]
[White "Sanchez, Robert"]
[Black "Mei, Austin"]
[WhiteFideId "2034360"]
[BlackFideId "30948479"]
[WhiteElo "1966"]
[BlackElo "2218"]
[Result "0-1"]
[Round "09"]
[TimeControl "180+2"]
[Date "2023.01.03"]
[WhiteClock "0:01:43"]
[BlackClock "0:02:16"]

1. e4 {[%clk 0:02:54]}  e5 {[%clk 0:02:55]} 2. Nf3 {[%clk 0:02:52]}  Nc6 {[%clk 0:02:56]} 3. Bb5 {[%clk 0:02:53]}  a6 {[%clk 0:02:56]} 4. Ba4 {[%clk 0:02:53]}  Nf6 {[%clk 0:02:56]} 5. d3 {[%clk 0:02:53]}  d6 {[%clk 0:02:55]} 6. Bxc6+ {[%clk 0:02:51]}  bxc6 {[%clk 0:02:55]} 7. c4 {[%clk 0:02:52]}  g6 {[%clk 0:02:55]} 8. Nc3 {[%clk 0:02:52]}  Bg7 {[%clk 0:02:55]} 9. h3 {[%clk 0:02:53]}  O-O {[%clk 0:02:55]} 10. O-O {[%clk 0:02:54]}  h6 {[%clk 0:02:51]} 11. Rb1 {[%clk 0:02:51]}  a5 {[%clk 0:02:48]} 12. b3 {[%clk 0:02:50]}  Be6 {[%clk 0:02:48]} 13. a3 {[%clk 0:02:50]}  Nd7 {[%clk 0:02:48]} 14. Be3 {[%clk 0:02:47]}  f5 {[%clk 0:02:48]} 15. exf5 {[%clk 0:02:47]}  gxf5 {[%clk 0:02:48]} 16. d4 {[%clk 0:02:39]}  e4 {[%clk 0:02:47]} 17. Ne1 {[%clk 0:02:33]}  f4 {[%clk 0:02:47]} 18. Bc1 {[%clk 0:02:30]}  d5 {[%clk 0:02:47]} 19. Bb2 {[%clk 0:02:07]}  Qg5 {[%clk 0:02:45]} 20. Kh1 {[%clk 0:02:05]}  f3 {[%clk 0:02:42]} 21. gxf3 {[%clk 0:02:04]}  Qh4 {[%clk 0:02:40]} 22. Ne2 {[%clk 0:01:52]}  Qxh3+ {[%clk 0:02:38]} 23. Kg1 {[%clk 0:01:50]}  exf3 {[%clk 0:02:39]} 24. Ng3 {[%clk 0:01:50]}  Rae8 {[%clk 0:02:33]} 25. Qd3 {[%clk 0:01:43]}  Bg4 {[%clk 0:02:16]} 0-1


[Site "https://www.chess.com"]

[Event "Titled Tuesday Blitz January 03 Early 2023"]
[White "Mikhalsky, Vladimir"]
[Black "Gressmann, Moritz"]
[WhiteFideId "14144352"]
[BlackFideId "24695084"]
[WhiteElo "2219"]
[BlackElo "2129"]
[Result "0-1"]
[Round "09"]
[TimeControl "180+2"]
[Date "2023.01.03"]
[WhiteClock "0:00:36"]
[BlackClock "0:02:11"]

1. e4 {[%clk 0:02:56]}  e5 {[%clk 0:02:59]} 2. Nf3 {[%clk 0:02:56]}  Nf6 {[%clk 0:03:00]} 3. Nxe5 {[%clk 0:02:55]}  Nc6 {[%clk 0:03:00]} 4. Nxc6 {[%clk 0:02:54]}  dxc6 {[%clk 0:03:01]} 5. Nc3 {[%clk 0:02:51]}  Bc5 {[%clk 0:03:01]} 6. Be2 {[%clk 0:02:47]}  h5 {[%clk 0:02:59]} 7. O-O {[%clk 0:02:44]}  Ng4 {[%clk 0:02:47]} 8. h3 {[%clk 0:02:16]}  Qd6 {[%clk 0:02:44]} 9. Bxg4 {[%clk 0:01:16]}  hxg4 {[%clk 0:02:43]} 10. e5 {[%clk 0:01:11]}  Qg6 {[%clk 0:02:34]} 11. d4 {[%clk 0:01:11]}  gxh3 {[%clk 0:02:26]} 12. g3 {[%clk 0:01:09]}  Bg4 {[%clk 0:02:20]} 13. f3 {[%clk 0:01:01]}  h2+ {[%clk 0:02:17]} 14. Kh1 {[%clk 0:01:01]}  Bh3 {[%clk 0:02:15]} 15. Rf2 {[%clk 0:00:50]}  Qxg3 {[%clk 0:02:13]} 16. dxc5 {[%clk 0:00:36]}  Qxf2 {[%clk 0:02:11]} 0-1


[Site "https://www.chess.com"]

[Event "Titled Tuesday Blitz January 03 Early 2023"]
[White "Quinones Garcia, Santiago"]
[Black "Zaksaite, Salomeja"]
[WhiteFideId "4408497"]
[BlackFideId "12801496"]
[WhiteElo "2248"]
[BlackElo "2283"]
[Result "1-0"]
[Round "09"]
[TimeControl "180+2"]
[Date "2023.01.03"]
[WhiteClock "0:01:34"]
[BlackClock "0:00:01"]

1. d4 {[%clk 0:02:38]}  Nf6 {[%clk 0:02:59]} 2. c4 {[%clk 0:02:39]}  g6 {[%clk 0:03:00]} 3. Nc3 {[%clk 0:02:39]}  d5 {[%clk 0:03:00]} 4. cxd5 {[%clk 0:02:38]}  Nxd5 {[%clk 0:03:01]} 5. e4 {[%clk 0:02:39]}  Nxc3 {[%clk 0:03:01]} 6. bxc3 {[%clk 0:02:40]}  Bg7 {[%clk 0:03:02]} 7. Nf3 {[%clk 0:02:40]}  c5 {[%clk 0:03:02]} 8. Be3 {[%clk 0:02:40]}  O-O {[%clk 0:03:02]} 9. Be2 {[%clk 0:02:37]}  cxd4 {[%clk 0:03:01]} 10. cxd4 {[%clk 0:02:38]}  Qa5+ {[%clk 0:03:01]} 11. Qd2 {[%clk 0:02:38]}  Qxd2+ {[%clk 0:03:01]} 12. Kxd2 {[%clk 0:02:39]}  b6 {[%clk 0:02:59]} 13. Rac1 {[%clk 0:02:38]}  Ba6 {[%clk 0:02:59]} 14. d5 {[%clk 0:02:38]}  f5 {[%clk 0:02:56]} 15. e5 {[%clk 0:02:37]}  Bxe2 {[%clk 0:02:52]} 16. Kxe2 {[%clk 0:02:37]}  Nd7 {[%clk 0:02:51]} 17. Bd4 {[%clk 0:02:36]}  Rac8 {[%clk 0:02:49]} 18. Rhe1 {[%clk 0:02:28]}  Nc5 {[%clk 0:02:47]} 19. Bxc5 {[%clk 0:02:23]}  bxc5 {[%clk 0:02:47]} 20. Red1 {[%clk 0:02:23]}  Rfd8 {[%clk 0:02:45]} 21. Ng5 {[%clk 0:02:14]}  Bxe5 {[%clk 0:02:38]} 22. Ne6 {[%clk 0:02:13]}  Rd7 {[%clk 0:02:20]} 23. Rxc5 {[%clk 0:02:10]}  Rxc5 {[%clk 0:02:17]} 24. Nxc5 {[%clk 0:02:11]}  Rc7 {[%clk 0:02:17]} 25. Ne6 {[%clk 0:02:08]}  Rc2+ {[%clk 0:02:16]} 26. Rd2 {[%clk 0:02:08]}  Rxd2+ {[%clk 0:02:12]} 27. Kxd2 {[%clk 0:02:09]}  Kf7 {[%clk 0:01:32]} 28. f4 {[%clk 0:02:07]}  Bd6 {[%clk 0:01:25]} 29. Kd3 {[%clk 0:02:04]}  h6 {[%clk 0:01:24]} 30. h4 {[%clk 0:02:04]}  Ke8 {[%clk 0:00:20]} 31. a4 {[%clk 0:02:01]}  a6 {[%clk 0:00:18]} 32. Kc4 {[%clk 0:01:58]}  Ba3 {[%clk 0:00:18]} 33. Nc5 {[%clk 0:01:55]}  Bc1 {[%clk 0:00:09]} 34. Nxa6 {[%clk 0:01:53]}  Bxf4 {[%clk 0:00:08]} 35. Nc5 {[%clk 0:01:53]}  Bd2 {[%clk 0:00:07]} 36. Kb5 {[%clk 0:01:50]}  Kd8 {[%clk 0:00:06]} 37. a5 {[%clk 0:01:50]}  Kc8 {[%clk 0:00:05]} 38. a6 {[%clk 0:01:50]}  Kb8 {[%clk 0:00:04]} 39. Kb6 {[%clk 0:01:51]}  Be3 {[%clk 0:00:04]} 40. Kc6 {[%clk 0:01:48]}  Ka7 {[%clk 0:00:03]} 41. Ne6 {[%clk 0:01:34]}  Kxa6 {[%clk 0:00:03]} 42. Kd7 {[%clk 0:01:35]}  Kb5 {[%clk 0:00:02]} 43. Kxe7 {[%clk 0:01:35]}  Kc4 {[%clk 0:00:01]} 44. d6 {[%clk 0:01:35]}  Bb6 {[%clk 0:00:01]} 45. d7 {[%clk 0:01:35]}  g5 {[%clk 0:00:01]} 46. h5 {[%clk 0:01:35]}  f4 {[%clk 0:00:01]} 47. d8=Q {[%clk 0:01:34]} 1-0


[Site "https://www.chess.com"]

[Event "Titled Tuesday Blitz January 03 Early 2023"]
[White "Prudnykova, Olga"]
[Black "Krstic, Milos"]
[WhiteFideId "14121093"]
[BlackFideId "954888"]
[WhiteElo "2268"]
[BlackElo "2183"]
[Result "1/2-1/2"]
[Round "09"]
[TimeControl "180+2"]
[Date "2023.01.03"]
[WhiteClock "0:00:07"]
[BlackClock "0:00:02"]

1. e4 {[%clk 0:03:00]}  d6 {[%clk 0:02:59]} 2. d4 {[%clk 0:03:00]}  Nd7 {[%clk 0:02:59]} 3. Nc3 {[%clk 0:02:59]}  Ngf6 {[%clk 0:03:00]} 4. Be3 {[%clk 0:02:59]}  e5 {[%clk 0:03:00]} 5. g4 {[%clk 0:02:50]}  h6 {[%clk 0:02:58]} 6. h3 {[%clk 0:02:42]}  c6 {[%clk 0:02:57]} 7. Nf3 {[%clk 0:02:42]}  Be7 {[%clk 0:02:57]} 8. Bc4 {[%clk 0:02:41]}  Qc7 {[%clk 0:02:56]} 9. Bb3 {[%clk 0:02:32]}  b6 {[%clk 0:02:53]} 10. Rg1 {[%clk 0:02:30]}  exd4 {[%clk 0:02:45]} 11. Nxd4 {[%clk 0:02:27]}  Nc5 {[%clk 0:02:45]} 12. Qf3 {[%clk 0:02:11]}  Nxb3 {[%clk 0:02:30]} 13. axb3 {[%clk 0:02:10]}  Nd7 {[%clk 0:02:08]} 14. Qg3 {[%clk 0:01:59]}  Ne5 {[%clk 0:01:57]} 15. f4 {[%clk 0:01:57]}  Ng6 {[%clk 0:01:57]} 16. O-O-O {[%clk 0:01:47]}  a5 {[%clk 0:01:52]} 17. Nf5 {[%clk 0:01:34]}  O-O {[%clk 0:01:30]} 18. h4 {[%clk 0:01:27]}  b5 {[%clk 0:01:16]} 19. h5 {[%clk 0:01:24]}  Nh8 {[%clk 0:01:16]} 20. g5 {[%clk 0:01:17]}  hxg5 {[%clk 0:01:14]} 21. fxg5 {[%clk 0:01:16]}  Bxf5 {[%clk 0:01:11]} 22. exf5 {[%clk 0:01:15]}  b4 {[%clk 0:01:04]} 23. Ne4 {[%clk 0:01:14]}  f6 {[%clk 0:00:50]} 24. gxf6 {[%clk 0:01:02]}  Bxf6 {[%clk 0:00:50]} 25. Nxf6+ {[%clk 0:00:56]}  Rxf6 {[%clk 0:00:51]} 26. h6 {[%clk 0:00:54]}  g6 {[%clk 0:00:42]} 27. fxg6 {[%clk 0:00:50]}  Rxg6 {[%clk 0:00:43]} 28. Qh4 {[%clk 0:00:38]}  Kh7 {[%clk 0:00:40]} 29. Bd4 {[%clk 0:00:32]}  Rag8 {[%clk 0:00:36]} 30. Bg7 {[%clk 0:00:26]}  Qf7 {[%clk 0:00:29]} 31. Qe4 {[%clk 0:00:25]}  d5 {[%clk 0:00:28]} 32. Qd3 {[%clk 0:00:23]}  Qf4+ {[%clk 0:00:22]} 33. Kb1 {[%clk 0:00:23]}  Qe4 {[%clk 0:00:15]} 34. Qxe4 {[%clk 0:00:19]}  dxe4 {[%clk 0:00:16]} 35. Rxg6 {[%clk 0:00:19]}  Nxg6 {[%clk 0:00:16]} 36. Re1 {[%clk 0:00:18]}  Re8 {[%clk 0:00:16]} 37. Re3 {[%clk 0:00:18]}  Nf4 {[%clk 0:00:15]} 38. Kc1 {[%clk 0:00:17]}  Nd5 {[%clk 0:00:15]} 39. Re1 {[%clk 0:00:16]}  e3 {[%clk 0:00:15]} 40. Kd1 {[%clk 0:00:16]}  Nf4 {[%clk 0:00:13]} 41. Kc1 {[%clk 0:00:13]}  Ng2 {[%clk 0:00:08]} 42. Re2 {[%clk 0:00:12]}  Nf4 {[%clk 0:00:09]} 43. Re1 {[%clk 0:00:12]}  e2 {[%clk 0:00:06]} 44. Kd2 {[%clk 0:00:09]}  Rd8+ {[%clk 0:00:07]} 45. Ke3 {[%clk 0:00:09]}  Ng2+ {[%clk 0:00:07]} 46. Kf2 {[%clk 0:00:08]}  Nxe1 {[%clk 0:00:07]} 47. Kxe1 {[%clk 0:00:08]}  Re8 {[%clk 0:00:08]} 48. c3 {[%clk 0:00:06]}  bxc3 {[%clk 0:00:07]} 49. bxc3 {[%clk 0:00:06]}  Rb8 {[%clk 0:00:07]} 50. b4 {[%clk 0:00:05]}  axb4 {[%clk 0:00:07]} 51. cxb4 {[%clk 0:00:06]}  Rxb4 {[%clk 0:00:08]} 52. Kxe2 {[%clk 0:00:06]}  Rh4 {[%clk 0:00:06]} 53. Kd3 {[%clk 0:00:06]}  Kg6 {[%clk 0:00:06]} 54. Kc3 {[%clk 0:00:06]}  Kf5 {[%clk 0:00:07]} 55. Kd3 {[%clk 0:00:06]}  Ke6 {[%clk 0:00:07]} 56. Kc3 {[%clk 0:00:06]}  Kd5 {[%clk 0:00:07]} 57. Kd3 {[%clk 0:00:06]}  c5 {[%clk 0:00:08]} 58. Kc3 {[%clk 0:00:06]}  Rh3+ {[%clk 0:00:08]} 59. Kc2 {[%clk 0:00:06]}  Kc4 {[%clk 0:00:09]} 60. Kd2 {[%clk 0:00:07]}  Kb4 {[%clk 0:00:07]} 61. Bf8 {[%clk 0:00:06]}  Kb5 {[%clk 0:00:05]} 62. Kc2 {[%clk 0:00:06]}  Rh2+ {[%clk 0:00:03]} 63. Kd3 {[%clk 0:00:06]}  Rh3+ {[%clk 0:00:04]} 64. Ke4 {[%clk 0:00:06]}  c4 {[%clk 0:00:04]} 65. Bg7 {[%clk 0:00:06]}  Kb4 {[%clk 0:00:04]} 66. Kf5 {[%clk 0:00:06]}  Kb3 {[%clk 0:00:01]} 67. Kg6 {[%clk 0:00:06]}  c3 {[%clk 0:00:01]} 68. Bxc3 {[%clk 0:00:06]}  Kxc3 {[%clk 0:00:02]} 69. h7 {[%clk 0:00:06]}  Kd4 {[%clk 0:00:02]} 70. Kg7 {[%clk 0:00:06]}  Ke5 {[%clk 0:00:02]} 71. h8=Q {[%clk 0:00:07]}  Rxh8 {[%clk 0:00:02]} 72. Kxh8 {[%clk 0:00:07]} 1/2-1/2


[Site "https://www.chess.com"]

[Event "Titled Tuesday Blitz January 03 Early 2023"]
[White "Kukula, Pawel"]
[Black "Matveeva, Olga"]
[WhiteFideId "1115081"]
[BlackFideId "24107018"]
[WhiteElo "2135"]
[BlackElo "2128"]
[Result "1/2-1/2"]
[Round "09"]
[TimeControl "180+2"]
[Date "2023.01.03"]
[WhiteClock "0:00:25"]
[BlackClock "0:00:10"]

1. d4 {[%clk 0:02:58]}  d5 {[%clk 0:02:59]} 2. Nf3 {[%clk 0:02:58]}  Nf6 {[%clk 0:02:59]} 3. e3 {[%clk 0:02:56]}  e6 {[%clk 0:02:59]} 4. Bd3 {[%clk 0:02:56]}  c5 {[%clk 0:02:56]} 5. c3 {[%clk 0:02:55]}  Nc6 {[%clk 0:02:56]} 6. Nbd2 {[%clk 0:02:56]}  Be7 {[%clk 0:02:52]} 7. O-O {[%clk 0:02:55]}  O-O {[%clk 0:02:52]} 8. Qe2 {[%clk 0:02:55]}  b6 {[%clk 0:02:39]} 9. dxc5 {[%clk 0:02:54]}  Bxc5 {[%clk 0:02:30]} 10. e4 {[%clk 0:02:55]}  Bb7 {[%clk 0:02:10]} 11. e5 {[%clk 0:02:44]}  Nd7 {[%clk 0:02:07]} 12. b4 {[%clk 0:02:41]}  Be7 {[%clk 0:02:06]} 13. b5 {[%clk 0:02:41]}  Na5 {[%clk 0:02:02]} 14. Re1 {[%clk 0:02:35]}  Rc8 {[%clk 0:02:00]} 15. Bb2 {[%clk 0:02:35]}  Qc7 {[%clk 0:01:56]} 16. Rac1 {[%clk 0:02:34]}  Nc4 {[%clk 0:01:54]} 17. Nxc4 {[%clk 0:02:31]}  dxc4 {[%clk 0:01:54]} 18. Bb1 {[%clk 0:02:32]}  Rfd8 {[%clk 0:01:50]} 19. h4 {[%clk 0:02:31]}  g6 {[%clk 0:01:26]} 20. h5 {[%clk 0:02:31]}  Bf8 {[%clk 0:01:23]} 21. hxg6 {[%clk 0:02:30]}  hxg6 {[%clk 0:01:22]} 22. Be4 {[%clk 0:02:25]}  Bg7 {[%clk 0:01:19]} 23. Bxb7 {[%clk 0:02:24]}  Qxb7 {[%clk 0:01:20]} 24. Ba3 {[%clk 0:02:16]}  Nc5 {[%clk 0:01:16]} 25. Bxc5 {[%clk 0:02:14]}  Rxc5 {[%clk 0:01:17]} 26. a4 {[%clk 0:02:12]}  Qc7 {[%clk 0:01:15]} 27. Rcd1 {[%clk 0:02:10]}  Rcd5 {[%clk 0:01:11]} 28. Rxd5 {[%clk 0:02:09]}  Rxd5 {[%clk 0:01:12]} 29. Rd1 {[%clk 0:01:44]}  Rxd1+ {[%clk 0:01:07]} 30. Qxd1 {[%clk 0:01:44]}  Bxe5 {[%clk 0:01:07]} 31. Qe1 {[%clk 0:01:24]}  Bf6 {[%clk 0:01:04]} 32. g3 {[%clk 0:01:21]}  Kg7 {[%clk 0:01:04]} 33. Qe3 {[%clk 0:01:17]}  Qd6 {[%clk 0:01:03]} 34. Nd2 {[%clk 0:01:12]}  Qd3 {[%clk 0:00:45]} 35. Qxd3 {[%clk 0:01:12]}  cxd3 {[%clk 0:00:45]} 36. Ne4 {[%clk 0:01:12]}  d2 {[%clk 0:00:41]} 37. Nxd2 {[%clk 0:01:12]}  Bxc3 {[%clk 0:00:41]} 38. Ne4 {[%clk 0:01:09]}  Be5 {[%clk 0:00:34]} 39. Kf1 {[%clk 0:01:07]}  f5 {[%clk 0:00:33]} 40. Nd2 {[%clk 0:01:07]}  Kf6 {[%clk 0:00:32]} 41. Nc4 {[%clk 0:01:08]}  Bc7 {[%clk 0:00:31]} 42. Ke2 {[%clk 0:01:09]}  e5 {[%clk 0:00:31]} 43. Kd3 {[%clk 0:01:09]}  Ke6 {[%clk 0:00:31]} 44. Ne3 {[%clk 0:01:01]}  g5 {[%clk 0:00:29]} 45. f3 {[%clk 0:00:59]}  f4 {[%clk 0:00:20]} 46. gxf4 {[%clk 0:00:57]}  exf4 {[%clk 0:00:18]} 47. Ng4 {[%clk 0:00:52]}  Kd5 {[%clk 0:00:17]} 48. Nf6+ {[%clk 0:00:53]}  Kc5 {[%clk 0:00:15]} 49. Ne4+ {[%clk 0:00:50]}  Kb4 {[%clk 0:00:14]} 50. Nxg5 {[%clk 0:00:47]}  Kxa4 {[%clk 0:00:15]} 51. Kc4 {[%clk 0:00:48]}  Ka5 {[%clk 0:00:14]} 52. Ne6 {[%clk 0:00:48]}  Bb8 {[%clk 0:00:13]} 53. Nd4 {[%clk 0:00:48]}  Ka4 {[%clk 0:00:13]} 54. Nc6 {[%clk 0:00:48]}  Bd6 {[%clk 0:00:12]} 55. Nxa7 {[%clk 0:00:48]}  Ka3 {[%clk 0:00:12]} 56. Nc8 {[%clk 0:00:48]}  Bc5 {[%clk 0:00:12]} 57. Kd5 {[%clk 0:00:46]}  Kb2 {[%clk 0:00:12]} 58. Kc6 {[%clk 0:00:47]}  Kc3 {[%clk 0:00:10]} 59. Nxb6 {[%clk 0:00:48]}  Bxb6 {[%clk 0:00:10]} 60. Kxb6 {[%clk 0:00:48]}  Kd3 {[%clk 0:00:10]} 61. Kc5 {[%clk 0:00:46]}  Ke3 {[%clk 0:00:11]} 62. b6 {[%clk 0:00:47]}  Kxf3 {[%clk 0:00:11]} 63. b7 {[%clk 0:00:47]}  Kg2 {[%clk 0:00:11]} 64. b8=Q {[%clk 0:00:48]}  f3 {[%clk 0:00:12]} 65. Kd4 {[%clk 0:00:46]}  f2 {[%clk 0:00:12]} 66. Qg8+ {[%clk 0:00:46]}  Kh1 {[%clk 0:00:10]} 67. Qh7+ {[%clk 0:00:46]}  Kg1 {[%clk 0:00:10]} 68. Qg6+ {[%clk 0:00:46]}  Kh1 {[%clk 0:00:10]} 69. Qh5+ {[%clk 0:00:46]}  Kg1 {[%clk 0:00:10]} 70. Qg4+ {[%clk 0:00:45]}  Kh1 {[%clk 0:00:10]} 71. Qe2 {[%clk 0:00:43]}  Kg1 {[%clk 0:00:10]} 72. Qg4+ {[%clk 0:00:41]}  Kh1 {[%clk 0:00:10]} 73. Qh3+ {[%clk 0:00:40]}  Kg1 {[%clk 0:00:10]} 74. Qg3+ {[%clk 0:00:30]}  Kh1 {[%clk 0:00:11]} 75. Qf3+ {[%clk 0:00:29]}  Kg1 {[%clk 0:00:11]} 76. Qe3 {[%clk 0:00:29]}  Kg2 {[%clk 0:00:10]} 77. Qe2 {[%clk 0:00:28]}  Kg1 {[%clk 0:00:10]} 78. Qg4+ {[%clk 0:00:25]} 1/2-1/2


[Site "https://www.chess.com"]

[Event "Titled Tuesday Blitz January 03 Early 2023"]
[White "Ibadov, Dashgyn"]
[Black "Barbot, Pierre"]
[WhiteFideId "24107514"]
[BlackFideId "663727"]
[WhiteElo "2391"]
[BlackElo "2458"]
[Result "1-0"]
[Round "09"]
[TimeControl "180+2"]
[Date "2023.01.03"]
[WhiteClock "0:00:20"]
[BlackClock "0:00:02"]

1. e4 {[%clk 0:03:00]}  c5 {[%clk 0:02:54]} 2. Nf3 {[%clk 0:02:59]}  Nc6 {[%clk 0:02:38]} 3. Bb5 {[%clk 0:02:57]}  g6 {[%clk 0:02:37]} 4. O-O {[%clk 0:02:57]}  Bg7 {[%clk 0:02:37]} 5. c3 {[%clk 0:02:57]}  Nf6 {[%clk 0:02:37]} 6. Re1 {[%clk 0:02:57]}  O-O {[%clk 0:02:36]} 7. d4 {[%clk 0:02:57]}  d5 {[%clk 0:02:29]} 8. e5 {[%clk 0:02:57]}  Ne4 {[%clk 0:02:26]} 9. Bxc6 {[%clk 0:02:58]}  bxc6 {[%clk 0:02:26]} 10. Be3 {[%clk 0:02:58]}  cxd4 {[%clk 0:02:15]} 11. cxd4 {[%clk 0:02:58]}  Qb6 {[%clk 0:02:16]} 12. Qc1 {[%clk 0:02:59]}  a5 {[%clk 0:02:16]} 13. Nc3 {[%clk 0:02:59]}  Nxc3 {[%clk 0:02:10]} 14. Qxc3 {[%clk 0:02:59]}  a4 {[%clk 0:01:58]} 15. Rac1 {[%clk 0:02:56]}  Bd7 {[%clk 0:01:56]} 16. Bg5 {[%clk 0:02:39]}  Rfe8 {[%clk 0:01:49]} 17. Nd2 {[%clk 0:02:26]}  Ra6 {[%clk 0:01:34]} 18. h3 {[%clk 0:02:16]}  Bf5 {[%clk 0:01:32]} 19. g4 {[%clk 0:02:09]}  Bd7 {[%clk 0:01:29]} 20. Kg2 {[%clk 0:02:06]}  Qb7 {[%clk 0:01:14]} 21. Rc2 {[%clk 0:01:23]}  Rb6 {[%clk 0:01:12]} 22. b3 {[%clk 0:01:21]}  a3 {[%clk 0:00:41]} 23. Rb1 {[%clk 0:01:02]}  Rb4 {[%clk 0:00:41]} 24. Qe3 {[%clk 0:00:54]}  Qb6 {[%clk 0:00:32]} 25. Rc5 {[%clk 0:00:47]}  Bc8 {[%clk 0:00:25]} 26. Rbc1 {[%clk 0:00:46]}  Bd7 {[%clk 0:00:24]} 27. R1c3 {[%clk 0:00:44]}  Qb7 {[%clk 0:00:22]} 28. Bh6 {[%clk 0:00:43]}  Bh8 {[%clk 0:00:22]} 29. Nf3 {[%clk 0:00:38]}  f6 {[%clk 0:00:15]} 30. Bf4 {[%clk 0:00:32]}  f5 {[%clk 0:00:14]} 31. e6 {[%clk 0:00:30]}  Bc8 {[%clk 0:00:14]} 32. gxf5 {[%clk 0:00:27]}  gxf5 {[%clk 0:00:11]} 33. Be5 {[%clk 0:00:26]}  Bf6 {[%clk 0:00:07]} 34. Qh6 {[%clk 0:00:21]}  Bxe6 {[%clk 0:00:03]} 35. Ng5 {[%clk 0:00:19]}  Bxg5 {[%clk 0:00:03]} 36. Qxg5+ {[%clk 0:00:19]}  Kf8 {[%clk 0:00:02]} 37. Qg7# {[%clk 0:00:20]} 1-0


[Site "https://www.chess.com"]

[Event "Titled Tuesday Blitz January 03 Early 2023"]
[White "Najdin, Danil"]
[Black "Bobomurodova, Maftuna"]
[WhiteFideId "4172426"]
[BlackFideId "14207400"]
[WhiteElo "2235"]
[BlackElo "1946"]
[Result "1-0"]
[Round "09"]
[TimeControl "180+2"]
[Date "2023.01.03"]
[WhiteClock "0:00:15"]
[BlackClock "0:00:27"]

1. e4 {[%clk 0:03:00]}  d5 {[%clk 0:02:59]} 2. exd5 {[%clk 0:03:00]}  Nf6 {[%clk 0:02:59]} 3. d4 {[%clk 0:03:00]}  Nxd5 {[%clk 0:02:59]} 4. c4 {[%clk 0:02:59]}  Nb6 {[%clk 0:02:58]} 5. Nc3 {[%clk 0:02:57]}  g6 {[%clk 0:02:58]} 6. Bf4 {[%clk 0:02:45]}  Bg7 {[%clk 0:02:59]} 7. Nf3 {[%clk 0:02:36]}  Bg4 {[%clk 0:02:52]} 8. Be2 {[%clk 0:02:36]}  Nc6 {[%clk 0:02:48]} 9. d5 {[%clk 0:02:35]}  Bxf3 {[%clk 0:02:47]} 10. Bxf3 {[%clk 0:02:33]}  Ne5 {[%clk 0:02:47]} 11. Be2 {[%clk 0:02:30]}  O-O {[%clk 0:02:46]} 12. c5 {[%clk 0:02:03]}  Nbd7 {[%clk 0:02:41]} 13. Be3 {[%clk 0:01:55]}  c6 {[%clk 0:02:39]} 14. O-O {[%clk 0:01:50]}  Nf6 {[%clk 0:02:27]} 15. dxc6 {[%clk 0:01:46]}  Nxc6 {[%clk 0:02:26]} 16. Bf3 {[%clk 0:01:45]}  Qa5 {[%clk 0:02:23]} 17. Qa4 {[%clk 0:01:42]}  Qxa4 {[%clk 0:02:20]} 18. Nxa4 {[%clk 0:01:43]}  Rfd8 {[%clk 0:02:20]} 19. Rfd1 {[%clk 0:01:41]}  Nd7 {[%clk 0:02:13]} 20. Rac1 {[%clk 0:01:15]}  Nde5 {[%clk 0:02:10]} 21. Be2 {[%clk 0:01:12]}  Kf8 {[%clk 0:02:08]} 22. Nc3 {[%clk 0:01:11]}  Nb4 {[%clk 0:02:05]} 23. a3 {[%clk 0:00:43]}  Rxd1+ {[%clk 0:02:03]} 24. Rxd1 {[%clk 0:00:40]}  Nbc6 {[%clk 0:01:56]} 25. f4 {[%clk 0:00:38]}  f5 {[%clk 0:01:39]} 26. fxe5 {[%clk 0:00:38]}  Bxe5 {[%clk 0:01:39]} 27. Bf3 {[%clk 0:00:36]}  Ke8 {[%clk 0:01:37]} 28. Nb5 {[%clk 0:00:31]}  a6 {[%clk 0:01:34]} 29. Nd4 {[%clk 0:00:26]}  Na5 {[%clk 0:01:33]} 30. c6 {[%clk 0:00:18]}  Bxd4 {[%clk 0:00:57]} 31. Rxd4 {[%clk 0:00:14]}  Nxc6 {[%clk 0:00:54]} 32. Bxc6+ {[%clk 0:00:13]}  bxc6 {[%clk 0:00:54]} 33. Bf4 {[%clk 0:00:13]}  Ra7 {[%clk 0:00:51]} 34. Kf2 {[%clk 0:00:13]}  Rb7 {[%clk 0:00:51]} 35. b4 {[%clk 0:00:13]}  Rb5 {[%clk 0:00:51]} 36. a4 {[%clk 0:00:12]}  Rb7 {[%clk 0:00:48]} 37. Rc4 {[%clk 0:00:13]}  Kd7 {[%clk 0:00:48]} 38. Ke3 {[%clk 0:00:13]}  Rb6 {[%clk 0:00:46]} 39. Kd4 {[%clk 0:00:13]}  Rb7 {[%clk 0:00:41]} 40. Kc5 {[%clk 0:00:13]}  Ra7 {[%clk 0:00:30]} 41. Rd4+ {[%clk 0:00:14]}  Ke8 {[%clk 0:00:28]} 42. h4 {[%clk 0:00:14]}  a5 {[%clk 0:00:28]} 43. b5 {[%clk 0:00:13]}  cxb5 {[%clk 0:00:28]} 44. axb5 {[%clk 0:00:14]}  a4 {[%clk 0:00:27]} 45. b6 {[%clk 0:00:15]}  Rb7 {[%clk 0:00:27]} 46. Kc6 {[%clk 0:00:15]} 1-0


[Site "https://www.chess.com"]